bitfinex/quotes_BTCUSD_20241119
["timestamp","ask_amount","ask_price","bid_price","bid_amount"]
[1732045414322,0.106907,93539.0,93531.0,0.021383]
[1732045414558,0.01,93541.0,93535.0,0.021382]
[1732045414776,0.01,93541.0,93531.0,0.021383]
[1732045414991,0.116906,93540.0,93536.0,0.00137083]
[1732045415211,0.116906,93540.0,93533.0,0.021382]
[1732045415414,0.116906,93540.0,93534.0,0.021382]
[1732045415621,0.01,93540.0,93533.0,0.021382]
[1732045415833,0.01,93538.0,93535.0,0.021382]
[1732045416042,0.01,93535.0,93530.0,0.021383]
[1732045416697,0.01,93535.0,93531.0,0.021383]
[1732045416917,0.106907,93539.0,93532.0,0.021382]
[1732045417189,0.106919,93529.0,93523.0,0.021385]
[1732045417408,0.106919,93529.0,93514.0,0.0792]
[1732045417409,0.01,93530.0,93527.0,0.021384]
[1732045417844,0.01,93530.0,93528.0,0.00137603]
[1732045418047,0.01,93530.0,93524.0,0.021384]
[1732045418484,0.01,93530.0,93521.0,0.021385]
[1732045418703,0.01,93530.0,93523.0,0.021385]
[1732045418914,0.01,93530.0,93510.0,0.021387]
[1732045418915,0.106932,93517.0,93510.0,0.021387]
[1732045419161,0.106932,93517.0,93488.0,0.0795]
[1732045419162,0.11694,93511.0,93488.0,0.0795]
[1732045419361,0.01,93511.0,93489.0,0.10906255]
[1732045419582,0.01,93510.0,93507.0,0.021388]
[1732045419801,0.01,93510.0,93509.0,0.021388]
[1732045420044,0.1,93518.0,93517.0,0.021386]
[1732045420045,0.11,93518.0,93517.0,0.021386]
[1732045420252,0.11,93518.0,93490.0,0.021392]
[1732045420253,0.01,93510.0,93509.0,0.0227426]
[1732045420459,0.01,93510.0,93509.0,0.021388]
[1732045420666,0.01,93510.0,93509.0,0.0228207]
[1732045421747,0.01,93511.0,93509.0,0.0014327]
[1732045422196,0.01,93511.0,93491.0,0.10906255]
[1732045422197,0.01,93511.0,93506.0,0.021388]
[1732045422398,0.01,93511.0,93510.0,0.021388]
[1732045422858,0.01,93511.0,93510.0,0.0228207]
[1732045424989,0.01,93512.0,93510.0,0.0228207]
[1732045425213,0.04316228,93519.0,93510.0,0.0228207]
[1732045425214,0.01,93511.0,93510.0,0.0228207]
[1732045425423,0.01,93511.0,93510.0,0.021388]
[1732045425641,0.01,93511.0,93510.0,0.0228207]
[1732045425846,0.01,93511.0,93510.0,0.0014327]
[1732045426301,0.01,93511.0,93509.0,0.042776]
[1732045426302,0.01,93511.0,93509.0,0.021388]
[1732045426535,0.01,93511.0,93510.0,0.0014327]
[1732045427458,0.01,93511.0,93510.0,0.0228207]
[1732045428935,0.01,93511.0,93510.0,0.0014327]
[1732045429114,0.01,93511.0,93510.0,0.0228207]
[1732045430426,0.01,93512.0,93511.0,0.021387]
[1732045430641,0.04375853,93520.0,93510.0,0.0228207]
[1732045430642,0.04375853,93520.0,93519.0,0.021386]
[1732045430865,0.01,93530.0,93529.0,0.021383]
[1732045431053,0.01,93537.0,93511.0,0.10906255]
[1732045431298,0.01,93539.0,93538.0,0.021381]
[1732045431530,0.04245562,93542.0,93541.0,0.02138]
[1732045431719,0.01,93539.0,93538.0,0.021381]
[1732045431947,0.106903,93542.0,93541.0,0.00131263]
[1732045432130,0.5583,93553.0,93531.0,0.021383]
[1732045432273,0.106909,93538.0,93532.0,0.021382]
[1732045432479,0.10691,93537.0,93532.0,0.021382]
[1732045432706,0.10691,93537.0,93533.0,0.02269858]
[1732045432910,0.01984706,93541.0,93512.0,0.13044955]
[1732045433083,0.10906255,93540.0,93522.0,0.021385]
[1732045433282,0.1781,93537.0,93524.0,0.021384]
[1732045433487,0.12890961,93536.0,93513.0,0.021387]
[1732045433690,0.14284706,93535.0,93503.0,0.100989]
[1732045433893,0.11984706,93535.0,93533.0,0.021382]
[1732045434120,0.11984706,93535.0,93504.0,0.11039999]
[1732045434121,0.1,93535.0,93504.0,0.10906255]
[1732045434321,0.1,93535.0,93534.0,0.021382]
[1732045434520,0.1,93535.0,93533.0,0.021382]
[1732045434724,0.01986533,93537.0,93534.0,0.021382]
[1732045435010,0.1,93538.0,93534.0,0.021382]
[1732045435211,0.01986723,93537.0,93534.0,0.021382]
[1732045435444,0.1,93535.0,93534.0,0.021382]
[1732045435797,0.11986723,93535.0,93534.0,0.021382]
[1732045436427,0.01986723,93535.0,93534.0,0.021382]
[1732045436631,0.1,93539.0,93535.0,0.021382]
[1732045436835,0.01987793,93538.0,93535.0,0.021382]
[1732045437043,0.01987793,93537.0,93534.0,0.021382]
[1732045437242,0.1,93539.0,93534.0,0.021382]
[1732045437243,0.01987793,93536.0,93534.0,0.042764]
[1732045437507,0.01987793,93535.0,93532.0,0.021382]
[1732045437683,0.01987793,93534.0,93528.0,0.021383]
[1732045437913,0.01987793,93533.0,93529.0,0.021383]
[1732045438060,0.01987793,93532.0,93509.0,0.021388]
[1732045438261,0.1,93535.0,93525.0,0.021384]
[1732045438492,0.12679585,93534.0,93528.0,0.021383]
[1732045438704,0.1,93535.0,93526.0,0.021384]
[1732045438705,0.01988185,93533.0,93526.0,0.021384]
[1732045438896,0.1,93535.0,93527.0,0.021383]
[1732045438897,0.106913,93534.0,93527.0,0.021383]
[1732045439254,0.106913,93534.0,93524.0,0.021384]
[1732045439451,0.106913,93534.0,93506.0,0.021389]
[1732045439577,0.206912,93535.0,93528.0,0.021383]
[1732045439987,0.206912,93535.0,93523.0,0.021385]
[1732045439988,0.01988886,93534.0,93524.0,0.021384]
[1732045440192,0.01988886,93533.0,93532.0,0.021383]
[1732045440813,0.1,93535.0,93534.0,0.021382]
[1732045441219,0.1,93535.0,93532.0,0.021383]
[1732045441564,0.1,93535.0,93532.0,0.021382]
[1732045441876,0.1,93535.0,93534.0,0.021382]
[1732045443022,0.1198961,93535.0,93534.0,0.021382]
[1732045443255,0.1,93535.0,93534.0,0.021382]
[1732045444486,0.04243828,93541.0,93540.0,0.021381]
[1732045444621,0.06234673,93541.0,93538.0,0.021381]
[1732045444816,0.0781,93545.0,93540.0,0.021381]
[1732045445166,0.11991349,93544.0,93540.0,0.021381]
[1732045445299,0.01991349,93543.0,93516.0,0.10906255]
[1732045445530,0.12681649,93543.0,93538.0,0.021381]
[1732045445705,0.11991349,93542.0,93538.0,0.042762]
[1732045445953,0.01991349,93541.0,93538.0,0.042762]
[1732045446132,0.01991349,93540.0,93538.0,0.021381]
[1732045446341,0.01991349,93539.0,93538.0,0.021381]
[1732045446720,0.106901,93544.0,93538.0,0.02278526]
[1732045446928,0.106901,93544.0,93539.0,0.021381]
[1732045447634,0.106904,93542.0,93527.0,0.021384]
[1732045447842,0.12230228,93545.0,93527.0,0.021384]
[1732045447843,0.106906,93540.0,93535.0,0.021382]
[1732045448086,0.106903,93543.0,93537.0,0.021381]
[1732045448303,0.106903,93542.0,93537.0,0.021381]
[1732045449270,0.106901,93544.0,93537.0,0.021381]
[1732045449506,0.106901,93544.0,93539.0,0.021381]
[1732045449865,0.106903,93543.0,93539.0,0.021381]
[1732045450509,0.20212253,93544.0,93539.0,0.021381]
[1732045450736,0.213809,93541.0,93516.0,0.13044855]
[1732045450963,0.106913,93534.0,93528.0,0.021383]
[1732045451184,0.213819,93537.0,93519.0,0.021386]
[1732045451423,0.09522053,93540.0,93520.0,0.00141588]
[1732045451627,0.09522053,93540.0,93535.0,0.021382]
[1732045451835,0.09522053,93542.0,93516.0,0.13044855]
[1732045452041,0.213809,93541.0,93531.0,0.021383]
[1732045452243,0.20428308,93542.0,93529.0,0.021383]
[1732045452574,0.1,93543.0,93507.0,0.083]
[1732045452575,0.023,93538.0,93507.0,0.083]
[1732045452781,0.09722053,93539.0,93515.0,0.021386]
[1732045452782,0.106928,93521.0,93515.0,0.021386]
[1732045452999,0.09522053,93530.0,93515.0,0.021386]
[1732045453000,0.213841,93527.0,93516.0,0.00141043]
[1732045453239,0.106925,93523.0,93517.0,0.042772]
[1732045453658,0.106926,93522.0,93517.0,0.021386]
[1732045454073,0.106923,93525.0,93520.0,0.021385]
[1732045454399,0.106923,93525.0,93499.0,0.083]
[1732045454400,0.427692,93525.0,93509.0,0.021388]
[1732045454613,0.106931,93519.0,93513.0,0.021387]
[1732045454816,0.1,93526.0,93511.0,0.021387]
[1732045455012,0.10693,93519.0,93514.0,0.021387]
[1732045455216,0.1,93526.0,93515.0,0.021386]
[1732045455217,0.213846,93525.0,93515.0,0.021386]
[1732045455419,0.106927,93522.0,93517.0,0.021386]
[1732045455822,0.213851,93523.0,93511.0,0.021387]
[1732045456188,0.106928,93521.0,93516.0,0.021386]
[1732045456405,0.1,93526.0,93516.0,0.021386]
[1732045456617,0.106926,93522.0,93518.0,0.021386]
[1732045457097,0.213853,93522.0,93517.0,0.0008564]
[1732045457311,0.106929,93520.0,93517.0,0.0008564]
[1732045457534,0.213851,93523.0,93517.0,0.0222424]
[1732045457535,0.106927,93522.0,93517.0,0.0222424]
[1732045457763,0.213848,93524.0,93517.0,0.0008564]
[1732045457964,0.106926,93522.0,93518.0,0.021386]
[1732045458187,0.106925,93523.0,93518.0,0.042772]
[1732045458604,0.04298488,93527.0,93526.0,0.021384]
[1732045459072,0.09522053,93534.0,93517.0,0.0008564]
[1732045459277,0.213837,93529.0,93520.0,0.021385]
[1732045459485,0.106921,93527.0,93522.0,0.021385]
[1732045459687,0.106921,93527.0,93523.0,0.021385]
[1732045459897,0.213834,93531.0,93522.0,0.021385]
[1732045460125,0.09522053,93532.0,93517.0,0.0008564]
[1732045460363,0.18833654,93535.0,93517.0,0.0008564]
[1732045460364,0.09522053,93533.0,93532.0,0.021383]
[1732045460586,0.04550574,93535.0,93534.0,0.021382]
[1732045461792,0.1428308,93545.0,93532.0,0.021383]
[1732045461793,0.05272627,93544.0,93542.0,0.02138]
[1732045461997,0.05272627,93544.0,93533.0,0.021382]
[1732045462232,0.05272627,93544.0,93532.0,0.021383]
[1732045462233,0.05272627,93544.0,93543.0,0.02138]
[1732045462938,0.5483,93546.0,93543.0,0.02138]
[1732045463309,0.2138,93545.0,93532.0,0.021383]
[1732045463497,0.106908,93538.0,93532.0,0.021382]
[1732045463727,0.73342428,93546.0,93512.0,0.0757]
[1732045463728,0.023,93545.0,93512.0,0.0757]
[1732045463933,0.15446255,93544.0,93518.0,0.021386]
[1732045464177,0.106911,93535.0,93530.0,0.021383]
[1732045464665,0.5483,93537.0,93531.0,0.021383]
[1732045464914,0.106911,93536.0,93531.0,0.021383]
[1732045465121,0.5483,93537.0,93533.0,0.021382]
[1732045465527,0.106905,93541.0,93514.0,0.021387]
[1732045465690,0.106908,93538.0,93514.0,0.021387]
[1732045465892,0.106909,93538.0,93532.0,0.021382]
[1732045466071,0.10906255,93542.0,93532.0,0.021382]
[1732045466072,0.106908,93539.0,93533.0,0.021382]
[1732045466275,0.106908,93539.0,93532.0,0.021382]
[1732045466276,0.106908,93539.0,93534.0,0.021382]
[1732045466476,0.106902,93543.0,93538.0,0.021381]
[1732045467048,0.39892428,93546.0,93544.0,0.02138]
[1732045467049,0.1,93545.0,93544.0,0.02138]
[1732045467266,0.04229348,93546.0,93544.0,0.02138]
[1732045467267,0.04229348,93546.0,93545.0,0.02138]
[1732045467484,0.1428808,93550.0,93544.0,0.02138]
[1732045467485,5e-05,93550.0,93549.0,0.021379]
[1732045467906,0.0426122,93550.0,93549.0,0.021379]
[1732045468111,5e-05,93550.0,93549.0,0.021379]
[1732045470334,0.106897,93548.0,93544.0,0.02138]
[1732045470987,0.106903,93542.0,93537.0,0.021381]
[1732045471199,5e-05,93550.0,93537.0,0.021381]
[1732045471358,5e-05,93550.0,93531.0,0.0008564]
[1732045471359,0.106897,93548.0,93544.0,0.02138]
[1732045471792,0.106898,93547.0,93542.0,0.02138]
[1732045471960,0.106898,93547.0,93543.0,0.02138]
[1732045472209,5e-05,93550.0,93543.0,0.02138]
[1732045472428,5e-05,93550.0,93538.0,0.021381]
[1732045472429,5e-05,93550.0,93537.0,0.021381]
[1732045472640,5e-05,93550.0,93531.0,0.0008564]
[1732045472641,0.09575925,93546.0,93531.0,0.0008564]
[1732045472860,0.20265825,93546.0,93541.0,0.02138]
[1732045473536,0.20265825,93546.0,93542.0,0.02138]
[1732045473748,0.09575925,93546.0,93542.0,0.02138]
[1732045474425,0.09575925,93546.0,93545.0,0.02138]
[1732045474637,5e-05,93550.0,93549.0,0.021379]
[1732045476836,0.5483,93553.0,93552.0,0.021378]
[1732045476837,0.5063729,93553.0,93552.0,0.021378]
[1732045477473,0.04403222,93553.0,93552.0,0.021378]
[1732045477678,0.213777,93556.0,93545.0,0.02138]
[1732045477898,0.01993343,93555.0,93548.0,0.021379]
[1732045478105,0.01993343,93554.0,93551.0,0.021378]
[1732045478320,0.213777,93556.0,93547.0,0.021379]
[1732045478540,0.213777,93556.0,93548.0,0.021379]
[1732045478541,0.01993202,93555.0,93548.0,0.021379]
[1732045478747,0.01993202,93554.0,93550.0,0.021378]
[1732045478965,0.01993202,93553.0,93548.0,0.021379]
[1732045479174,0.01993202,93552.0,93541.0,0.02138]
[1732045479422,0.01993202,93551.0,93545.0,0.02138]
[1732045479616,0.12899457,93555.0,93526.0,0.021384]
[1732045479874,0.106892,93553.0,93548.0,0.021379]
[1732045480100,0.01993202,93554.0,93550.0,0.021378]
[1732045480101,0.11565105,93554.0,93550.0,0.021378]
[1732045480465,0.023,93552.0,93531.0,0.0008564]
[1732045480676,0.106911,93536.0,93531.0,0.0008564]
[1732045480865,0.106915,93532.0,93531.0,0.0008564]
[1732045482661,0.01992376,93533.0,93531.0,0.0008564]
[1732045483326,0.1,93539.0,93532.0,0.021383]
[1732045483533,0.19571903,93539.0,93536.0,0.021382]
[1732045483708,0.106909,93538.0,93533.0,0.021382]
[1732045483940,0.1,93539.0,93534.0,0.021382]
[1732045484146,0.1,93539.0,93535.0,0.021382]
[1732045484348,0.1,93539.0,93534.0,0.021382]
[1732045484549,0.1,93539.0,93536.0,0.021382]
[1732045484961,0.1,93539.0,93537.0,0.021381]
[1732045485186,0.1,93539.0,93538.0,0.021381]
[1732045485416,0.1,93539.0,93531.0,0.0008564]
[1732045485417,0.11993192,93539.0,93531.0,0.0008564]
[1732045485645,0.01993192,93538.0,93535.0,0.021382]
[1732045485871,0.01658779,93538.0,93536.0,0.021382]
[1732045486126,0.00658779,93537.0,93534.0,0.021382]
[1732045486318,0.01,93538.0,93536.0,0.021382]
[1732045486540,0.11658779,93538.0,93534.0,0.042764]
[1732045486770,0.00658779,93535.0,93532.0,0.021382]
[1732045486987,0.00658779,93531.0,93516.0,0.10906255]
[1732045487209,0.00658779,93531.0,93529.0,0.021383]
[1732045487488,0.00658779,93531.0,93530.0,0.021383]
[1732045488379,0.00658779,93531.0,93518.0,0.021386]
[1732045488594,0.11692,93528.0,93502.0,0.13045155]
[1732045488838,0.01,93528.0,93523.0,0.021384]
[1732045489049,0.01,93528.0,93503.0,0.021389]
[1732045489265,0.01,93528.0,93526.0,0.021384]
[1732045489486,0.01,93528.0,93505.0,0.042778]
[1732045489487,0.01,93528.0,93505.0,0.021389]
[1732045489747,0.106924,93525.0,93519.0,0.021386]
[1732045489961,0.106926,93523.0,93517.0,0.021386]
[1732045490170,0.116924,93524.0,93515.0,0.021386]
[1732045490391,0.01,93524.0,93519.0,0.021385]
[1732045490813,0.01,93524.0,93522.0,0.021385]
[1732045491048,0.1261293,93530.0,93528.0,0.021383]
[1732045491282,0.1261293,93530.0,93527.0,0.021384]
[1732045491717,0.01,93528.0,93521.0,0.021385]
[1732045491932,0.1261293,93530.0,93523.0,0.021385]
[1732045491933,0.320756,93529.0,93523.0,0.021385]
[1732045492145,0.10692,93528.0,93523.0,0.021385]
[1732045492811,0.106927,93522.0,93518.0,0.021386]
[1732045493030,0.00658779,93523.0,93499.0,0.13045255]
[1732045493241,0.00658779,93523.0,93520.0,0.021385]
[1732045493457,0.00658779,93523.0,93501.0,0.02139]
[1732045493696,0.106931,93518.0,93494.0,0.0671]
[1732045493948,0.00658779,93519.0,93495.0,0.10906255]
[1732045494157,0.00658779,93519.0,93515.0,0.021386]
[1732045494584,0.00658779,93519.0,93511.0,0.021387]
[1732045494780,0.00658779,93519.0,93512.0,0.021387]
[1732045495002,0.213858,93520.0,93513.0,0.021387]
[1732045495003,0.11352079,93517.0,93513.0,0.021387]
[1732045495276,0.00658779,93517.0,93515.0,0.021386]
[1732045495710,0.00658779,93517.0,93516.0,0.021386]
[1732045496388,0.04355409,93520.0,93516.0,0.021386]
[1732045496599,0.05014188,93520.0,93519.0,0.021386]
[1732045496814,0.00658779,93520.0,93519.0,0.021386]
[1732045497253,0.10658779,93524.0,93523.0,0.021385]
[1732045498109,0.15063075,93524.0,93523.0,0.021385]
[1732045498545,0.15063075,93524.0,93519.0,0.042772]
[1732045498546,0.05063075,93524.0,93521.0,0.021385]
[1732045498756,0.05063075,93524.0,93503.0,0.021389]
[1732045498757,0.15063075,93524.0,93503.0,0.021389]
[1732045498962,0.00658779,93521.0,93520.0,0.021385]
[1732045501341,0.00658779,93517.0,93516.0,0.021386]
[1732045502197,0.1,93523.0,93512.0,0.021387]
[1732045502421,0.04404296,93524.0,93522.0,0.021385]
[1732045502645,0.04404296,93524.0,93523.0,0.021385]
[1732045502905,0.00658779,93530.0,93526.0,0.021384]
[1732045503132,0.0017134,93531.0,93526.0,0.021384]
[1732045503584,0.54972201,93527.0,93526.0,0.021384]
[1732045504472,0.04334911,93527.0,93526.0,0.13044655]
[1732045504915,0.0017134,93531.0,93530.0,0.021383]
[1732045505345,0.04438633,93531.0,93530.0,0.021383]
[1732045505571,0.0017134,93531.0,93530.0,0.2613745]
[1732045505792,0.0017134,93531.0,93530.0,0.23235776]
[1732045506882,0.47122867,93561.0,93557.0,0.021377]
[1732045507116,0.00658779,93561.0,93532.0,0.00341221]
[1732045507324,0.00658779,93561.0,93555.0,0.021377]
[1732045507544,0.05052942,93561.0,93560.0,0.021376]
[1732045507756,0.00658779,93561.0,93536.0,0.021382]
[1732045507971,0.00658779,93561.0,93550.0,0.021378]
[1732045508200,0.00658779,93561.0,93537.0,0.10906255]
[1732045508201,0.106883,93560.0,93553.0,0.021378]
[1732045508411,0.00658779,93558.0,93526.0,0.00426861]
[1732045508628,0.0788,93557.0,93529.0,0.00341221]
[1732045508853,0.0788,93557.0,93529.0,0.11247476]
[1732045509324,0.00658779,93555.0,93529.0,0.10906255]
[1732045509539,0.106893,93552.0,93545.0,0.021379]
[1732045509748,0.106893,93552.0,93546.0,0.021379]
[1732045509966,0.106893,93552.0,93547.0,0.021379]
[1732045510175,0.213782,93554.0,93545.0,0.021379]
[1732045510406,0.00658779,93555.0,93529.0,0.10906255]
[1732045510668,0.00658779,93555.0,93553.0,0.021378]
[1732045510880,0.00658779,93555.0,93530.0,0.021383]
[1732045511083,0.00658779,93555.0,93550.0,0.021378]
[1732045511302,0.00658779,93555.0,93553.0,0.021378]
[1732045511526,0.00658779,93555.0,93551.0,0.042756]
[1732045511749,0.00658779,93555.0,93551.0,0.021378]
[1732045511995,0.00658779,93555.0,93548.0,0.021379]
[1732045512192,0.00658779,93555.0,93550.0,0.021378]
[1732045512405,0.00658779,93555.0,93546.0,0.021379]
[1732045512619,0.0489,93553.0,93547.0,0.021379]
[1732045512831,0.0489,93553.0,93552.0,0.021378]
[1732045513083,0.0489,93553.0,93547.0,0.021379]
[1732045513319,0.0489,93553.0,93548.0,0.021379]
[1732045513549,0.0489,93553.0,93549.0,0.021379]
[1732045513785,0.0489,93553.0,93527.0,0.13044655]
[1732045514009,0.213784,93552.0,93546.0,0.021379]
[1732045514234,0.106897,93548.0,93543.0,0.02138]
[1732045514460,0.0484,93534.0,93515.0,0.0805]
[1732045514722,0.0484,93534.0,93525.0,0.021384]
[1732045514939,0.10692,93527.0,93516.0,0.021386]
[1732045515150,0.106919,93529.0,93523.0,0.021384]
[1732045515363,0.00658779,93531.0,93523.0,0.021384]
[1732045515580,0.106917,93530.0,93525.0,0.021384]
[1732045515798,0.00658779,93531.0,93527.0,0.021384]
[1732045516016,0.11350379,93531.0,93526.0,0.0222404]
[1732045516225,0.11350379,93531.0,93526.0,0.0008564]
[1732045516447,0.00658779,93531.0,93530.0,0.021383]
[1732045516930,0.213803,93544.0,93543.0,0.02138]
[1732045516931,0.09543428,93544.0,93543.0,0.02138]
[1732045517198,0.46464088,93545.0,93543.0,0.02138]
[1732045517418,0.46464088,93545.0,93542.0,0.02138]
[1732045517862,0.04383991,93545.0,93544.0,0.02138]
[1732045518295,0.00658779,93552.0,93548.0,0.021379]
[1732045518771,0.05052737,93552.0,93544.0,0.02138]
[1732045518984,0.00658779,93552.0,93526.0,0.0222404]
[1732045519201,0.00658779,93552.0,93543.0,0.02138]
[1732045519414,0.00658779,93552.0,93541.0,0.02138]
[1732045519633,0.106898,93548.0,93543.0,0.02138]
[1732045519859,0.00658779,93552.0,93541.0,0.02138]
[1732045519860,0.1069,93546.0,93541.0,0.02138]
[1732045520077,0.00658779,93552.0,93529.0,0.021383]
[1732045520078,0.0017128,93534.0,93533.0,0.021382]
[1732045520300,0.00658779,93531.0,93507.0,0.0809]
[1732045520514,0.10692,93527.0,93519.0,0.021385]
[1732045520748,0.11350379,93531.0,93524.0,0.021384]
[1732045521191,0.00658779,93531.0,93526.0,0.0222404]
[1732045521401,0.00658779,93531.0,93526.0,0.0008564]
[1732045521626,0.00658779,93531.0,93529.0,0.021383]
[1732045521844,0.38494147,93534.0,93531.0,0.021383]
[1732045522307,0.38494147,93534.0,93533.0,0.021382]
[1732045522532,0.42805501,93534.0,93533.0,0.021382]
[1732045522967,0.42805501,93534.0,93529.0,0.021383]
[1732045523402,0.42805501,93534.0,93530.0,0.021383]
[1732045523809,0.42805501,93534.0,93526.0,0.0008564]
[1732045524035,0.42805501,93534.0,93533.0,0.021382]
[1732045525131,0.53496801,93534.0,93528.0,0.021383]
[1732045525336,0.42805501,93534.0,93528.0,0.021383]
[1732045525548,0.04311354,93534.0,93533.0,0.021382]
[1732045525766,0.04311354,93534.0,93526.0,0.0008564]
[1732045525767,0.15217609,93534.0,93526.0,0.0008564]
[1732045525976,0.1,93532.0,93518.0,0.021386]
[1732045526229,0.23366255,93533.0,93519.0,0.021385]
[1732045526230,0.106924,93524.0,93519.0,0.021385]
[1732045526430,0.213839,93528.0,93511.0,0.021387]
[1732045526649,0.10693,93519.0,93514.0,0.021386]
[1732045526863,0.10693,93519.0,93503.0,0.10906255]
[1732045526864,0.106927,93522.0,93517.0,0.021386]
[1732045527079,0.10693,93519.0,93515.0,0.021386]
[1732045527299,0.10693,93519.0,93513.0,0.021387]
[1732045527524,0.10693,93519.0,93502.0,0.0008567]
[1732045527525,0.213855,93521.0,93509.0,0.021388]
[1732045527729,0.1,93530.0,93515.0,0.021386]
[1732045527936,0.106935,93515.0,93503.0,0.021389]
[1732045528169,0.10636827,93515.0,93509.0,0.021388]
[1732045528403,0.106935,93515.0,93509.0,0.021388]
[1732045528656,0.106935,93515.0,93510.0,0.021387]
[1732045528874,0.049,93516.0,93503.0,0.021389]
[1732045529089,0.427739,93515.0,93503.0,0.021389]
[1732045529304,0.0813,93515.0,93504.0,0.021389]
[1732045529520,0.0813,93515.0,93503.0,0.021389]
[1732045529726,0.106936,93514.0,93509.0,0.021388]
[1732045529945,0.0813,93515.0,93502.0,0.0008567]
[1732045530189,0.09210485,93516.0,93513.0,0.021387]
[1732045531049,0.09210485,93516.0,93502.0,0.0008567]
[1732045531271,0.106935,93515.0,93511.0,0.021387]
[1732045531557,0.09210485,93516.0,93508.0,0.021388]
[1732045531558,0.106936,93514.0,93508.0,0.021388]
[1732045531778,0.106936,93514.0,93502.0,0.0008567]
[1732045531779,0.213869,93515.0,93506.0,0.021388]
[1732045531991,0.213871,93514.0,93506.0,0.021388]
[1732045532215,0.106939,93512.0,93507.0,0.021388]
[1732045532431,0.106936,93514.0,93508.0,0.021388]
[1732045532687,0.106936,93514.0,93509.0,0.021388]
[1732045533118,0.106935,93515.0,93509.0,0.021388]
[1732045533325,0.09210485,93516.0,93512.0,0.021387]
[1732045533556,0.09210485,93516.0,93467.0,0.1]
[1732045533557,0.01,93515.0,93467.0,0.1]
[1732045533778,0.01,93514.0,93507.0,0.021388]
[1732045534011,0.116936,93514.0,93509.0,0.021388]
[1732045534243,0.116936,93514.0,93509.0,0.010694]
[1732045534696,0.116936,93514.0,93510.0,0.010694]
[1732045534919,0.116936,93514.0,93488.0,0.010696]
[1732045535169,0.01,93515.0,93514.0,0.010693]
[1732045535391,0.01,93515.0,93513.0,0.010693]
[1732045535620,0.01,93515.0,93512.0,0.010693]
[1732045535849,0.09210485,93516.0,93512.0,0.010693]
[1732045536087,0.01,93515.0,93512.0,0.010693]
[1732045536301,0.01,93515.0,93504.0,0.010694]
[1732045536302,0.106935,93514.0,93504.0,0.010694]
[1732045536526,0.106935,93514.0,93499.0,0.010695]
[1732045536527,0.106945,93506.0,93501.0,0.010695]
[1732045536733,0.018942,93509.0,93503.0,0.010694]
[1732045536949,0.10694,93510.0,93505.0,0.010694]
[1732045537169,0.01,93515.0,93506.0,0.010694]
[1732045537404,0.213874,93513.0,93506.0,0.010694]
[1732045537662,0.106939,93511.0,93506.0,0.010694]
[1732045537928,0.01,93515.0,93503.0,0.010694]
[1732045538140,0.213874,93513.0,93506.0,0.010694]
[1732045538354,0.01,93515.0,93493.0,0.010695]
[1732045538593,0.106952,93500.0,93494.0,0.010695]
[1732045538841,0.106952,93500.0,93492.0,0.10906255]
[1732045538842,0.106948,93503.0,93497.0,0.010695]
[1732045539075,0.0825,93506.0,93486.0,0.010696]
[1732045539076,0.106953,93499.0,93486.0,0.010696]
[1732045539285,0.106953,93499.0,93485.0,0.0636]
[1732045539286,0.213892,93505.0,93499.0,0.010695]
[1732045539516,0.0825,93506.0,93504.0,0.010694]
[1732045539746,0.106941,93509.0,93504.0,0.021388]
[1732045539950,0.10694,93510.0,93505.0,0.010694]
[1732045540177,0.106942,93508.0,93503.0,0.010694]
[1732045540428,0.10694,93510.0,93486.0,0.10906255]
[1732045540627,0.25619917,93511.0,93504.0,0.010694]
[1732045540855,0.106941,93509.0,93505.0,0.010694]
[1732045541993,0.14925917,93511.0,93506.0,0.010694]
[1732045542196,0.106942,93509.0,93504.0,0.010694]
[1732045542424,0.106942,93509.0,93504.0,0.021388]
[1732045542636,0.25620017,93511.0,93496.0,0.010695]
[1732045542854,0.213893,93505.0,93498.0,0.010695]
[1732045543069,0.213883,93509.0,93498.0,0.010695]
[1732045543277,0.01,93510.0,93484.0,0.010696]
[1732045543496,0.01,93510.0,93495.0,0.010695]
[1732045543729,0.213887,93507.0,93495.0,0.010695]
[1732045543955,0.106945,93506.0,93501.0,0.010695]
[1732045544173,0.106946,93505.0,93501.0,0.010695]
[1732045544411,0.213883,93509.0,93501.0,0.010695]
[1732045544633,0.213883,93509.0,93505.0,0.000856]
[1732045544839,0.106945,93506.0,93505.0,0.000856]
[1732045546192,0.213883,93509.0,93505.0,0.000856]
[1732045546622,0.106945,93506.0,93505.0,0.000856]
[1732045546855,0.106942,93509.0,93505.0,0.000856]
[1732045547285,0.106944,93507.0,93505.0,0.000856]
[1732045547707,0.213885,93508.0,93505.0,0.000856]
[1732045547967,0.01,93510.0,93505.0,0.000856]
[1732045548189,0.106945,93506.0,93505.0,0.000856]
[1732045549456,0.05362059,93513.0,93505.0,0.000856]
[1732045549773,0.01,93513.0,93505.0,0.000856]
[1732045550019,0.01,93513.0,93509.0,0.010694]
[1732045550140,0.116937,93513.0,93508.0,0.010694]
[1732045550540,0.01,93513.0,93509.0,0.010694]
[1732045551037,0.01,93513.0,93505.0,0.000856]
[1732045551213,0.106941,93509.0,93505.0,0.000856]
[1732045551486,0.01,93513.0,93505.0,0.000856]
[1732045552149,0.116937,93513.0,93505.0,0.01155]
[1732045552375,0.04233791,93514.0,93513.0,0.010693]
[1732045552596,0.106924,93524.0,93511.0,0.010693]
[1732045552597,0.213848,93524.0,93511.0,0.010693]
[1732045552802,0.294347,93525.0,93518.0,0.010693]
[1732045553047,0.304347,93525.0,93516.0,0.010693]
[1732045553252,0.213848,93524.0,93505.0,0.000856]
[1732045553486,0.106932,93517.0,93512.0,0.010693]